Cogmind - Beta 16 @@@ ROGUE MODE // 2025.10.22 @ 09:16:03 Player: AntinDisguise Result: Destroyed by 2R-8S4(R) with Subdweller Machine Gun Performance ------------- Evolutions (0) 0 Regions Visited (3) 600 Robots Destroyed (23) 115 Value Destroyed (669) 669 Prototype IDs (0) 0 Alien Tech Used (0) 0 Bonus (98) 98 TOTAL SCORE: 1482 Bonus ------- Follower Combat Kills 120 Friendly Fire -22 Cogmind --------- Core Integrity 0/250 Matter 120/300 Energy 200/200 System Corruption 0% Temperature Cool (0) Movement Treading (250) Ox1 Location -10/Subcaves Parts ------- > --- POWER (1) -------- Subdweller Power Source > --- PROPULSION (2) --- Armored Treads > --- UTILITY (2) ------ Large Storage Unit Signal Interpreter > --- WEAPON (2) ------- Battle Cannon > --- INVENTORY (15) --- Light Nuclear Core Light Treads Arachnoskeleton Improved Heat Sink Improved Heat Sink Small Storage Unit Terrain Scanner Targeting Computer Insulated Plating Tractor Beam Rocket Launcher Peak State ------------ > --- POWER ------------ Subdweller Power Source > --- PROPULSION ------- Light Treads Armored Treads > --- UTILITY ---------- Large Storage Unit Signal Interpreter > --- WEAPON ----------- Pulse Rifle High-powered Shotgun > --- INVENTORY -------- Subdweller Power Source Light Nuclear Core Light Treads Arachnoskeleton Improved Heat Sink Improved Heat Sink Small Storage Unit Terrain Scanner Targeting Computer Insulated Plating Tractor Beam Battle Cannon Rocket Launcher [Rating: 18] Favorites ----------- Power Ion Engine Engine Ion Engine Propulsion Light Treads Treads Light Treads Leg Aluminum Leg Wheel Wheel Utility Signal Interpreter Storage Large Storage Unit Processor Signal Interpreter Weapon Rocket Launcher Energy Gun Small Laser Ballistic Gun Light Assault Rifle Ballistic Cannon Battle Cannon Launcher Rocket Launcher Build | -11 -10 -10 -10 ------- Run | Yrd Mat Min Sub Slots Evolved . | . . . . Power . | . . . . Propulsion . | . . . . Utility . | . . . . Weapon . | . . . . Parts Attached 26 | 8 6 8 4 Power 5 | 1 1 1 2 Engine 5 | 1 1 1 2 Core . | . . . . Reactor . | . . . . Propulsion 9 | 4 2 3 . Treads 3 | . 2 1 . Leg 2 | 2 . . . Wheel 4 | 2 . 2 . Hover . | . . . . Flight . | . . . . Utility 3 | 1 1 1 . Device . | . . . . Storage 2 | 1 . 1 . Processor 1 | . 1 . . Hackware . | . . . . Protection . | . . . . Artifact . | . . . . Weapon 9 | 2 2 3 2 Energy Gun 3 | . 1 1 1 Energy Cannon . | . . . . Ballistic Gun 3 | 2 . 1 . Ballistic Cannon 1 | . . . 1 Launcher 2 | . 1 1 . Special Weapon . | . . . . Impact Weapon . | . . . . Slashing Weapon . | . . . . Piercing Weapon . | . . . . Special Melee Weapon . | . . . . Unidentified Prototypes . | . . . . Parts Lost 8 | . 4 . 4 Power 1 | . 1 . . Propulsion 2 | . 1 . 1 Utility . | . . . . Weapon 5 | . 2 . 3 Highest Loss Streak 4 | . 2 . 4 To Critical Strikes . | . . . . Average Backups 8 | 2 3 8 11 Power . | . . . 1 Propulsion 1 | 1 1 1 1 Utility 5 | . . 5 6 Weapon 1 | . . 1 2 Tool/Special . | . . . . Unused Backups 9 | . . . 9 Power 1 | . . . 1 Propulsion 1 | . . . 1 Utility 6 | . . . 6 Weapon 1 | . . . 1 Tool/Special . | . . . . Average Slot Usage (%) 98 | . 90 99 99 Engine 13 | . 11 13 14 Treads 24 | . 10 26 27 Leg 2 | . 17 . . Storage 14 | . 14 14 14 Processor 13 | . 9 14 14 Energy Gun 12 | . 4 14 13 Ballistic Gun 8 | . 21 3 7 Launcher 6 | . . 10 5 Peak Build Rating 18 | 6 7 14 18 Average Rating 12 | 3 6 9 16 On Entrance 6 | . 6 7 14 Avg Prop Armor Cover (%) . | . . . . Naked Turns . | . . . . Heaviest Build 32 | 11 12 31 32 Greatest Support 40 | 26 40 40 40 Greatest Overweight (x) 3 | 3 . . 1 Average Overweight (x) . | . . . . Largest Inventory Capacity 15 | 8 8 15 15 Average Capacity 12 | 7 8 12 15 Most Carried 15 | 6 6 10 15 Average Carried 9 | 2 3 8 13 Final Capacity 15 | 8 8 15 15 Final Carried 13 | 2 6 8 13 Class Distribution -------------------- 97% | Mutant Dominant Class ---------------- Mutant | -10/Materials Mutant | -10/Mines Mutant | -10/Subcaves Resources | -11 -10 -10 -10 ----------- Run | Yrd Mat Min Sub Matter Collected 624 | 206 223 140 55 Remotely . | . . . . Salvage Created 650 | . 491 61 98 Parts 49 | . 32 9 8 Haulers Intercepted . | . . . . Recyclers Shooed 1 | . 1 . . Parts Field Recycled . | . . . . Retrieved Matter . | . . . . Parts Self-Destructed . | . . . . Prevented . | . . . . Parts Restored . | . . . . Kills | -11 -10 -10 -10 ------- Run | Yrd Mat Min Sub Combat Hostiles Destroyed 19 | . 11 5 3 Guns 12 | . 8 1 3 AOE 7 | . 3 4 . Classes Destroyed 7 | . 6 . 1 Builder 1 | . 1 . . Recycler 1 | . 1 . . Mechanic 1 | . 1 . . Operator 1 | . 1 . . Swarmer 6 | . 3 3 . Grunt 10 | . 8 2 . Subdweller 3 | . . . 3 Best Kill Streak 7 | . 7 3 1 Combat Bots Only 4 | . 4 3 1 Max Kills in Single Turn 3 | . 3 2 1 Gunslinging . | . . . . Exploded 2 | . 2 2 . Melee . | . . . . Uniques/NPCs Destroyed . | . . . . Combat | -11 -10 -10 -10 -------- Run | Yrd Mat Min Sub Hostile Shots Fired 117 | . 66 15 36 Missed 40 | . 21 4 15 Hits 77 | . 45 11 21 Projectile 77 | . 45 11 21 AOE 2 | . . . 2 Damage Taken 1492 | . 617 211 664 Core 250 | . 68 59 123 Absorbed by Shields . | . . . . Core Remaining (%) 100 | 100 . . . Volleys Fired 70 | . 36 9 25 Largest 2 | . 2 2 2 Hottest 96 | . 60 73 96 Shots Fired 117 | . 63 14 40 Gun 97 | . 59 9 29 Cannon 2 | . . . 2 Launcher 18 | . 4 5 9 Special . | . . . . Kinetic 63 | . 47 . 16 Thermal 36 | . 12 9 15 Explosive 18 | . 4 5 9 Electromagnetic . | . . . . Robot Hit Streak 11 | . 11 2 10 Robot Miss Streak 6 | . 6 4 2 Penetration Max . | . . . . Secondary Targets 1 | . 1 . . Max Gunslinging Chain 1 | . 1 . . Shots Hit Robots 78 | . 45 5 28 Core Hits 44 | . 30 7 7 Critical Kills . | . . . . Critical Parts Destroyed . | . . . . Critical Strikes 2 | . . . 2 Burn 2 | . . . 2 Melee Attacks . | . . . . Impact . | . . . . Slashing . | . . . . Piercing . | . . . . Sneak Attacks . | . . . . Combat Hostiles . | . . . . Follow-up Attacks . | . . . . Damage Inflicted 1548 | . 687 288 573 Guns 964 | . 422 34 508 Cannons 41 | . . . 41 Explosions 537 | . 265 248 24 Melee . | . . . . Ramming 6 | . . 6 . Kinetic 671 | . 338 . 333 Thermal 334 | . 84 34 216 Explosive 537 | . 265 248 24 Electromagnetic . | . . . . Impact . | . . . . Slashing . | . . . . Piercing . | . . . . Highest Corruption . | . . . . Average Corruption . | . . . . Corruption Purged . | . . . . Corruption Blocked . | . . . . Overload Shots . | . . . . Overflow Damage . | . . . . Projectiles . | . . . . Explosions . | . . . . Melee . | . . . . Knockbacks 1 | . . . 1 Impact . | . . . . Kinetic 1 | . . . 1 Secondary . | . . . . Self-Inflicted Damage 230 | . 52 40 138 Shots 10 | . 4 1 5 Rammed 1 | . . 1 . Targets Rammed 1 | . . 1 . Kicked . | . . . . Crushed . | . . . . Highest Temperature 63 | . 40 63 1 Average Temperature 16 | . 13 27 1 Received Heat Transfer 381 | . 267 60 54 Siege Activations . | . . . . Martial Activations . | . . . . Shielding Activations . | . . . . Robots Disrupted . | . . . . Combat Hostiles . | . . . . Robots Corrupted . | . . . . Combat Hostiles . | . . . . Parts Fried . | . . . . Impact Corruptions . | . . . . Robots Melted . | . . . . Combat Hostiles . | . . . . Parts Melted 1 | . . . 1 Heat Transferred 904 | . 200 75 629 Parts Sabotaged . | . . . . Parts Stolen . | . . . . Parts Stripped . | . . . . Power Chain Reactions . | . . . . Alert | -11 -10 -10 -10 ------- Run | Yrd Mat Min Sub Maximum Alert Level . | . . . . Low Security (%) 100 | 100 100 100 . Level 1 . | . . . . Level 2 . | . . . . Level 3 . | . . . . Level 4 . | . . . . Level 5 . | . . . . High Security . | . . . . Max Security . | . . . . Peak Influence 190 | . 168 190 . Initial 63 | . . 63 . Average 54 | . 57 55 . Influence Increases 561 | . 312 249 . Destroy 0b10 Robot/C 320 | . 220 100 . Destroy 0b10 Robot/NC 20 | . 20 . . Destroy Leader 60 | . 40 20 . Disable Machine 105 | . 15 90 . Destroy Structure 41 | . 17 24 . Lose Combat Pursuer 15 | . . 15 . Influence Decreases 561 | . 148 359 54 Entered New Map 130 | . . 101 29 Time Decay 396 | . 118 258 20 Lost Part 30 | . 30 . . Lost Ally 5 | . . . 5 Squads Dispatched 2 | . 2 . . Investigation . | . . . . Extermination . | . . . . Reinforcement 2 | . 2 . . Assault . | . . . . Garrison . | . . . . Intercept . | . . . . Searches Triggered . | . . . . Construction Impeded . | . . . . Haulers Reinforced . | . . . . Active Scanning Responses . | . . . . Cargo Convoy Interrupts . | . . . . Stealth | -11 -10 -10 -10 --------- Run | Yrd Mat Min Sub Distress Signals 1 | . 1 . . Communications Jammed . | . . . . Distress Signals . | . . . . Times Spotted 35 | . 14 6 15 Peak Tracking Total 6 | . 6 3 6 Tactical Retreats 1 | . . 1 . Traps | -11 -10 -10 -10 ------- Run | Yrd Mat Min Sub Traps Triggered 2 | . 1 1 . Indirectly . | . . . . Trap Hack Attempts . | . . . . Triggered . | . . . . Disarmed . | . . . . Reprogrammed . | . . . . Reused . | . . . . Traps Extracted . | . . . . Installed . | . . . . Triggered . | . . . . Machines | -11 -10 -10 -10 ---------- Run | Yrd Mat Min Sub Machines Disabled 7 | . 1 6 . Max in Single Turn 4 | . 1 4 . Machines Repaired . | . . . . Machines Dismantled . | . . . . Machines Sabotaged . | . . . . Overloaded Fab Kills . | . . . . Hacking | -11 -10 -10 -10 --------- Run | Yrd Mat Min Sub Machines Accessed 3 | . 1 1 1 Terminals 1 | . 1 . . Fabricators . | . . . . Repair Stations . | . . . . Recycling Units . | . . . . Scanalyzers . | . . . . Garrison Access . | . . . . Total Hacks 8 | . 3 1 4 Successful 6 | . 1 1 4 Failed 2 | . 2 . . Catastrophic . | . . . . Database Lockouts . | . . . . Manual . | . . . . Terminals 3 | . 3 . . Fabricators . | . . . . Repair Stations . | . . . . Recycling Units . | . . . . Scanalyzers . | . . . . Garrison Access . | . . . . Terminal Hacks 6 | . 1 1 4 Record 4 | . . . 4 Open Door 1 | . . 1 . Branch Access Points 1 | . 1 . . Fabricator Hacks . | . . . . Repair Station Hacks . | . . . . Recycling Unit Hacks . | . . . . Scanalyzer . | . . . . Garrison Access Hacks . | . . . . Unauthorized Hacks . | . . . . Terminals . | . . . . Fabricators . | . . . . Repair Stations . | . . . . Recycling Units . | . . . . Scanalyzers . | . . . . Garrison Access . | . . . . Data Cores Recovered . | . . . . Used . | . . . . Hacking Detections 1 | . 1 . . Full Trace Events 1 | . 1 . . Feedback Events . | . . . . Feedback Blocked . | . . . . Robot Schematics Acquired . | . . . . Robots Built . | . . . . Authchips . | . . . . Time . | . . . . Total Robot Build Rating . | . . . . Part Schematics Acquired . | . . . . Parts Built . | . . . . Authchips . | . . . . Time . | . . . . Total Part Build Rating . | . . . . Part Studies Acquired . | . . . . Parts Repaired . | . . . . Time . | . . . . Parts Recycled . | . . . . Recycled Matter . | . . . . Retrieved Matter . | . . . . Retrieved Components . | . . . . Parts Scanalyzed . | . . . . Part Schematics Acquired . | . . . . Parts Damaged . | . . . . Bothacking | -11 -10 -10 -10 ------------ Run | Yrd Mat Min Sub Used RIF Installer . | . . . . Robots Hacked . | . . . . Non-combat . | . . . . Combat . | . . . . Robot Hacks Applied . | . . . . Relay Couplers Released . | . . . . Fabnet Peak Effective % . | . . . . Robots Rewired . | . . . . Allies Hacked . | . . . . Hacks Repelled . | . . . . Allies | -11 -10 -10 -10 -------- Run | Yrd Mat Min Sub Total Allies 3 | . . 3 . Largest Group 3 | . . 3 3 Highest-Rated Group 40 | . . 40 40 Highest-Rated Ally 16 | . . 16 16 Total Orders . | . . . . Ally Attacks 32 | . . . 32 Total Damage 404 | . . . 404 Kills 4 | . . . 4 Allies Corrupted . | . . . . Allies Melted . | . . . . Intel | -11 -10 -10 -10 ------- Run | Yrd Mat Min Sub Active Infowar (turns) . | . . . . Robot Analysis Total . | . . . . Derelict Logs Recovered 3 | . . 2 1 Drone Launches . | . . . . Drone Recoveries . | . . . . Exploration | -11 -10 -10 -10 ------------- Run | Yrd Mat Min Sub Turns Passed 3323 | 59 517 1320 1427 Spaces Moved 1795 | 39 257 776 723 Core 17 | 17 . . . Treads 1495 | . 94 678 723 Legs 182 | 19 163 . . Wheels 101 | 3 . 98 . Hover . | . . . . Flight . | . . . . Fastest Speed 50 | 50 120 80 165 Average Speed 154 | 101 134 153 165 Slowest Speed 250 | 200 160 165 250 Overloaded Moves . | . . . . Propulsion Burnouts . | . . . . Robots Hopped . | . . . . Potential Cave-ins . | . . . . Cave-ins Triggered . | . . . . Exploration Rate (%) 43 | 4 31 99 38 Regions Visited 3 Branch Regions 2 Pre-discovered Areas 1 | . . 1 . Known Exits Taken 2 | . 1 1 . Unknown Exits Taken 1 | 1 . . . Scrap Searched 3 | . . 3 . Spaces Dug . | . . . . Terrain Destroyed 93 | . 15 26 52 Melee . | . . . . Projectile . | . . . . AOE 93 | . 15 26 52 Terrain Rammed . | . . . . Walls Destroyed . | . . . . Machines Disabled . | . . . . Actions | -11 -10 -10 -10 --------- Run | Yrd Mat Min Sub Total 2241 | 59 373 893 916 Wait 298 | 1 64 84 149 Move 1792 | 38 256 775 723 Hop . | . . . . Pick Up 35 | 10 10 7 8 Fast Attach . | . . . . Attach 24 | 8 6 6 4 Detach 2 | . . 1 1 Swap 8 | . . 5 3 Drop 11 | 2 1 5 3 Fire 70 | . 36 9 25 Melee . | . . . . Ram . | . . . . Kick . | . . . . Crush 1 | . . 1 . Escape Stasis . | . . . . Rewire . | . . . . Trap . | . . . . Miscellaneous . | . . . . Route ------- -11/Scrapyard -10/Materials (discovered 2 exits: *Min x2) -10/Mines (discovered 4 exits: *Mat x2 / *Exi / *Sub) -10/Subcaves (discovered 2 exits: *Mat / Rec) History --------- Turn | Location | Event 28 | -11/Scrapyard | Discovered new exit (range 15) 60 | -11/Scrapyard | Entered Materials 171 | -10/Materials | Identified exit to Mines 307 | -10/Materials | Build established: Mutant 577 | -10/Materials | Entered Mines 587 | -10/Mines | Learned location of Zion (-6) 603 | -10/Mines | Met a Derelict bent on vengeance 853 | -10/Mines | Received a Rocket Launcher from a helpful Derelict 897 | -10/Mines | Discovered new exit (range 9) 921 | -10/Mines | Identified exit to Materials 946 | -10/Mines | Met a Derelict who couldn't figure out how to use a Trap Extractor 986 | -10/Mines | Discovered new exit (range 8) 997 | -10/Mines | Identified exit to Subcaves 1267 | -10/Mines | Learned location of 1 exit from Materials 1280 | -10/Mines | Discovered exit to Materials (range 10) 1409 | -10/Mines | Core integrity fell below 50% 1585 | -10/Mines | Assisted by bots powering up and referring to "LRC-V3" 1681 | -10/Mines | Deemed a non-threat by the Exiles lab entrance 1681 | -10/Mines | Discovered new exit (range 5) 1688 | -10/Mines | Identified exit to Exiles 1897 | -10/Mines | Entered Subcaves 1897 | -10/Subcaves | Accompanied by 3 allies 1898 | -10/Subcaves | Approached by a straggling Scientist 2237 | -10/Subcaves | A Subdweller sparked back to life 2237 | -10/Subcaves | A Subdweller sparked back to life 2237 | -10/Subcaves | A Subdweller sparked back to life 2270 | -10/Subcaves | Found Prototype Leg 2910 | -10/Subcaves | Shifting Twisted Machinery released Sub. Laser 2938 | -10/Subcaves | A swath of the cavern ceiling suddenly collapsed 3189 | -10/Subcaves | Discovered new exit (range 6) 3199 | -10/Subcaves | Identified exit to Materials 3214 | -10/Subcaves | Identified exit to Recycling 3257 | -10/Subcaves | Visited Clippyterm 3262 | -10/Subcaves | Learned Factory emergency access door positions 3309 | -10/Subcaves | Ambushed by Subdweller buried in earth 3311 | -10/Subcaves | Ambushed by Subdweller buried in earth 3311 | -10/Subcaves | Ambushed by Subdweller buried in earth 3321 | -10/Subcaves | Core integrity fell below 20% 3324 | -10/Subcaves | Destroyed by 2R-8S4(R) with Subdweller Machine Gun Last Messages --------------- It looks like you're biased against spaces, I think you need more help than I can offer. >>Record! "LU-1G1" It looks like you're researching the legendary digger of dangerously deep tunnels, unfortunately it seems not even members of the Boring Crew know what became of that one. KF-8FO(c): "I think it's somewhere southeast of here" [Achievement: Do Not Disturb] WO-AP5(R): "HIDIE!" WO-AP5(R) destroyed. Pulse Rifle destroyed. Hpw. Shotgun destroyed. Trooper 1b destroyed. OI-CPO(R): "ARGHSUB!" ZE-U5M(R): "ARGHSUB!" [Achievement: There's More Where That Came From] Sub. Laser destroyed. OI-CPO(R) knocked back. Lgt. Treads destroyed. Map ----- +----------------------------------------------------+ | #??## #??? ##?????????????????????????????? | | ######???# ##?? ##????????????????????????????? | | #????????# ### #????????????????????????????? | | ?????????## #????????????????????????????? | | ??????????# #?????????????????????????????? | | ??????????## ###?????????????????????????????? | | ??????###??# ##???????????????????????????????? | | ??##### ### ##???????????????????????????????? | | ??#"""### ##??????????????????????????????? | | ??#"" ## ##?????????????????????????????? | | ??#"X ##????????????????????????????? | | ??#"" ## ## ##???????????????????????????? | | ??#"""## ## #####??#####????????????????? | | ??##### # ### #????????????????? | | ??????## #?????????????????? | | ???????# #?????????????????? | | ???????# ###### # #?????????????????? | | ??????# #????# #### ;##?????####???????????? | | ??????### ???# ## ;;; ;#???? ##??????????? | | ????????# ??# # &%R[R! ##?? #??????????? | | ????????## ??##### &&RR % ## #??????????? | | ??????????###?????# !% #???????????? | | ??????????????????# #?????????????? | | ??????????????????# ### #?????????????? | | ??????????????????## % ;##??? #?????????????? | | ???????????????????###; @##????? ##?????????????? | | ?????????????????????## #???????#??????????????? | | ??????????????????????#RR ??????????????????????? | | ????????????????????? ??????????????????????? | | ???????????????????? #?????????????????????? | | ??????????????????? "#### #?????????????????????? | | ??????????????????""#???# ?????????????????????? | | ????????????????? ""???? #?????????????????????? | | ???????????????? ???????""##?????????????????????? | | ????????????????????????###??????????????????????? | | ?????????????????????????????????????????????????? | | ?????????????????????????????????????????????????? | | ?????????????????????????????????????????????????? | | ?????????????????????????????????????????????????? | | ?????????????????????????????????????????????????? | | ?????????????????????????????????????????????????? | | ?????????????????????????????????????????????????? | | ?????????????????????????????????????????????????? | | ?????????????????????????????????????????????????? | | ?????????????????????????????????????????????????? | | ?????????????????????????????????????????????????? | | ?????????????????????????????????????????????????? | | ?????????????????????????????????????????????????? | | ?????????????????????????????????????????????????? | | ?????????????????????????????????????????????????? | +----------------------------------------------------+ Best States ------------- Heat Dissipation 25 Energy Generation 15 Energy Capacity 250 Matter Stores 300 Matter Capacity 300 Sight Range 16 Terrain Scan Density 10 Evasion (%) 55 Recoil Reduction 2 Item Schematics ----------------- None Robot Schematics ------------------ None Fabricated ------------ Nothing Repaired ---------- Nothing Studied --------- None Alien Tech Used ----------------- None Achievements -------------- DATA ERROR: Steam Global Achievement% Do Not Disturb For Emergencies Only Organ Harvest There's More Where That Came From Challenges ------------ None Game ------ Seed DisruptionCloakingFlail Manual? 0 Play Time 00:21:55 Cumulative 34.9 hours Start 2025.10.22 @ 08:54:04 End 2025.10.22 @ 09:16:03 Sessions 1 Manual Loads 0 Difficulty Rogue Special Mode None Game No. 97 Rogue 95 Adventurer 2 Explorer 0 Win Type - Total 0 Types 0/0/0/0/0/0/0/0/0/0 Lore% 14 Gallery% 28 Achievement% 14 Wizard Run 0 Options --------- Layout 1 ASCII 0 Keyboard 0 Movement Mouse Keybinds 0 Fullscreen 1 Font 20/SmallcapsGlow Map View 29x19 Zoom Use 64% Tactical HUD 0 Map Filters NONE Filters NONE Steam 1 RUN: 3d7763d6-f2ab-41d8-9474-59ee3f24627a